[Event "Late-Titled-Tuesday-Blitz-September-19-2023"]
[Site "Chess.com"]
[Date "2023.09.19"]
[Round "11"]
[White "Journey_to_GrandMaster_YT"]
[Black "Bilan_Danila"]
[Result "1-0"]
[WhiteElo "2662"]
[BlackElo "2562"]
[TimeControl "180+1"]
[EndTime "16:04:38 PDT"]
[Termination "Journey_to_GrandMaster_YT won by resignation"]

1. d4 {[%clk 0:03:00.6]} 1... d5 {[%clk 0:02:59.2]} 2. Nf3 {[%clk 0:03:00]} 2...
Nf6 {[%clk 0:02:59.2]} 3. c4 {[%clk 0:03:00.1]} 3... c6 {[%clk 0:02:59.5]} 4.
Nc3 {[%clk 0:03:00.3]} 4... e6 {[%clk 0:02:59.8]} 5. e3 {[%clk 0:02:57.3]} 5...
Nbd7 {[%clk 0:02:57]} 6. Qc2 {[%clk 0:02:56.3]} 6... Bd6 {[%clk 0:02:54.6]} 7.
b3 {[%clk 0:02:55.9]} 7... e5 {[%clk 0:02:45.9]} 8. cxd5 {[%clk 0:02:55.2]} 8...
cxd5 {[%clk 0:02:35.2]} 9. dxe5 {[%clk 0:02:55]} 9... Nxe5 {[%clk 0:02:31.7]}
10. Nd4 {[%clk 0:02:27]} 10... O-O {[%clk 0:01:59.6]} 11. Be2 {[%clk 0:02:26.1]}
11... Bg4 {[%clk 0:01:56.2]} 12. h3 {[%clk 0:01:53.5]} 12... Bxe2 {[%clk
0:01:51.8]} 13. Ndxe2 {[%clk 0:01:53.2]} 13... Rc8 {[%clk 0:01:43.8]} 14. O-O
{[%clk 0:01:47.3]} 14... Ne4 {[%clk 0:01:42.6]} 15. Bb2 {[%clk 0:01:33]} 15...
Qh4 {[%clk 0:01:15]} 16. Qd1 {[%clk 0:01:09]} 16... Nf3+ {[%clk 0:00:42.7]} 17.
gxf3 {[%clk 0:00:59.2]} 17... Qxh3 {[%clk 0:00:22]} 18. f4 {[%clk 0:00:48.3]}
18... Qg4+ {[%clk 0:00:16.6]} 19. Ng3 {[%clk 0:00:45.1]} 19... Qh3 {[%clk
0:00:01.9]} 20. Ncxe4 {[%clk 0:00:43.1]} 20... dxe4 {[%clk 0:00:01.4]} 21. Qxd6
{[%clk 0:00:41.6]} 21... Rc6 {[%clk 0:00:01.8]} 22. Qe5 {[%clk 0:00:39.6]} 22...
Rg6 {[%clk 0:00:02]} 23. f5 {[%clk 0:00:37.8]} 23... f6 {[%clk 0:00:02.2]} 24.
Qd5+ {[%clk 0:00:33.6]} 24... Kh8 {[%clk 0:00:02.6]} 25. fxg6 {[%clk 0:00:33.9]}
1-0

[Event "Late-Titled-Tuesday-Blitz-September-19-2023"]
[Site "Chess.com"]
[Date "2023.09.19"]
[Round "11"]
[White "BeanScreen"]
[Black "SCIM"]
[Result "1-0"]
[WhiteElo "2704"]
[BlackElo "2574"]
[TimeControl "180+1"]
[EndTime "16:04:40 PDT"]
[Termination "BeanScreen won by resignation"]

1. e4 {[%clk 0:02:11.3]} 1... c5 {[%clk 0:02:58.8]} 2. c3 {[%clk 0:02:11.2]}
2... d5 {[%clk 0:02:56.9]} 3. exd5 {[%clk 0:02:11.3]} 3... Qxd5 {[%clk
0:02:57.8]} 4. d4 {[%clk 0:02:11.6]} 4... Nf6 {[%clk 0:02:57.3]} 5. Nf3 {[%clk
0:02:11.7]} 5... e6 {[%clk 0:02:48.5]} 6. Na3 {[%clk 0:02:11.4]} 6... Qd8 {[%clk
0:02:47.4]} 7. Nc4 {[%clk 0:02:08.8]} 7... Nc6 {[%clk 0:02:42.9]} 8. Be3 {[%clk
0:01:48.8]} 8... cxd4 {[%clk 0:02:42.1]} 9. Nxd4 {[%clk 0:01:48.7]} 9... Nxd4
{[%clk 0:02:38.6]} 10. Bxd4 {[%clk 0:01:48.8]} 10... Be7 {[%clk 0:02:27]} 11.
Bd3 {[%clk 0:01:48.2]} 11... O-O {[%clk 0:02:17.4]} 12. Qe2 {[%clk 0:01:48.2]}
12... Bd7 {[%clk 0:02:09.1]} 13. O-O-O {[%clk 0:01:43.5]} 13... Qc8 {[%clk
0:01:27.1]} 14. g4 {[%clk 0:01:25.7]} 14... Ba4 {[%clk 0:01:18.5]} 15. Rdg1
{[%clk 0:01:14.1]} 15... Nd5 {[%clk 0:01:11.7]} 16. Qe4 {[%clk 0:01:03.9]} 16...
g6 {[%clk 0:01:03.1]} 17. g5 {[%clk 0:01:00.7]} 17... Qc7 {[%clk 0:00:53.1]} 18.
Be5 {[%clk 0:00:53.9]} 18... Qc5 {[%clk 0:00:52.7]} 19. Qh4 {[%clk 0:00:44.4]}
19... f6 {[%clk 0:00:41.3]} 20. Bxg6 {[%clk 0:00:31.7]} 20... hxg6 {[%clk
0:00:28.9]} 21. gxf6 {[%clk 0:00:31.6]} 21... Bxf6 {[%clk 0:00:19.9]} 22. Rxg6+
{[%clk 0:00:31.1]} 22... Kf7 {[%clk 0:00:19.6]} 23. Qh7+ {[%clk 0:00:25.9]}
23... Ke8 {[%clk 0:00:19.5]} 24. Nd6+ {[%clk 0:00:25.4]} 24... Qxd6 {[%clk
0:00:19]} 25. Bxd6 {[%clk 0:00:26.3]} 25... Rf7 {[%clk 0:00:16.5]} 26. Rg8+
{[%clk 0:00:25.8]} 26... Kd7 {[%clk 0:00:15.6]} 27. Qxf7+ {[%clk 0:00:25.8]} 1-0

[Event "Late-Titled-Tuesday-Blitz-September-19-2023"]
[Site "Chess.com"]
[Date "2023.09.19"]
[Round "11"]
[White "canary2016"]
[Black "AlexNovitz"]
[Result "0-1"]
[WhiteElo "2142"]
[BlackElo "2236"]
[TimeControl "180+1"]
[EndTime "16:04:41 PDT"]
[Termination "AlexNovitz won by resignation"]

1. e4 {[%clk 0:02:57.1]} 1... e6 {[%clk 0:02:59.6]} 2. Nf3 {[%clk 0:02:56.4]}
2... d5 {[%clk 0:02:59.9]} 3. e5 {[%clk 0:02:56.4]} 3... c5 {[%clk 0:02:59.3]}
4. b4 {[%clk 0:02:56.6]} 4... cxb4 {[%clk 0:02:58.7]} 5. a3 {[%clk 0:02:57]}
5... Nc6 {[%clk 0:02:59.1]} 6. axb4 {[%clk 0:02:56.2]} 6... Bxb4 {[%clk
0:02:59.8]} 7. c3 {[%clk 0:02:56.6]} 7... Be7 {[%clk 0:03:00.2]} 8. d4 {[%clk
0:02:56.9]} 8... a6 {[%clk 0:02:51.7]} 9. Bd3 {[%clk 0:02:55.7]} 9... f6 {[%clk
0:02:47.9]} 10. exf6 {[%clk 0:02:55]} 10... Nxf6 {[%clk 0:02:47.6]} 11. O-O
{[%clk 0:02:55.1]} 11... O-O {[%clk 0:02:47.5]} 12. Re1 {[%clk 0:02:54.4]} 12...
Bd7 {[%clk 0:02:35.1]} 13. Ne5 {[%clk 0:02:53.6]} 13... Nxe5 {[%clk 0:02:28.8]}
14. Rxe5 {[%clk 0:02:53.4]} 14... Bd6 {[%clk 0:02:27.8]} 15. Re3 {[%clk
0:02:51.8]} 15... Qc7 {[%clk 0:02:11.7]} 16. h3 {[%clk 0:02:51]} 16... e5 {[%clk
0:02:02.4]} 17. dxe5 {[%clk 0:02:50]} 17... Bxe5 {[%clk 0:02:03.3]} 18. Bb2
{[%clk 0:02:44.1]} 18... Bc6 {[%clk 0:01:58.6]} 19. Qe2 {[%clk 0:02:41.4]} 19...
Rae8 {[%clk 0:01:55.1]} 20. Nd2 {[%clk 0:02:38.6]} 20... Bh2+ {[%clk 0:01:49.7]}
21. Kh1 {[%clk 0:02:37.4]} 21... Bf4 {[%clk 0:01:50.1]} 22. Rxe8 {[%clk
0:02:35.4]} 22... Rxe8 {[%clk 0:01:51]} 23. Qd1 {[%clk 0:02:35.9]} 23... Qb6
{[%clk 0:01:43.7]} 24. Rb1 {[%clk 0:02:01.3]} 24... Qxf2 {[%clk 0:01:41.9]} 25.
Nf3 {[%clk 0:02:01]} 25... Ne4 {[%clk 0:01:25]} 26. Bxe4 {[%clk 0:01:50.6]}
26... dxe4 {[%clk 0:01:24.7]} 27. Nh2 {[%clk 0:01:44.8]} 27... Qg3 {[%clk
0:01:22]} 28. Nf1 {[%clk 0:01:44.5]} 28... Qd3 {[%clk 0:00:45.4]} 29. Qb3+
{[%clk 0:01:39.4]} 29... Bd5 {[%clk 0:00:36.8]} 30. Qd1 {[%clk 0:01:32.6]} 30...
Bc4 {[%clk 0:00:16.7]} 31. Ba3 {[%clk 0:01:20.1]} 31... e3 {[%clk 0:00:13.1]}
32. Qa4 {[%clk 0:01:03.4]} 32... b5 {[%clk 0:00:12.2]} 33. Qd1 {[%clk
0:00:41.4]} 33... e2 {[%clk 0:00:11.9]} 34. Qxd3 {[%clk 0:00:40.6]} 34... Bxd3
{[%clk 0:00:12.8]} 35. Ra1 {[%clk 0:00:39.7]} 35... exf1=Q+ {[%clk 0:00:12.4]}
0-1

[Event "Late-Titled-Tuesday-Blitz-September-19-2023"]
[Site "Chess.com"]
[Date "2023.09.19"]
[Round "11"]
[White "aNaartjieZA"]
[Black "GeorgiosSouleidis"]
[Result "1-0"]
[WhiteElo "2601"]
[BlackElo "2511"]
[TimeControl "180+1"]
[EndTime "16:04:44 PDT"]
[Termination "aNaartjieZA won by checkmate"]

1. e4 {[%clk 0:03:00.9]} 1... c5 {[%clk 0:02:57.3]} 2. Nf3 {[%clk 0:03:00.9]}
2... e6 {[%clk 0:02:57.8]} 3. d3 {[%clk 0:03:00.9]} 3... d5 {[%clk 0:02:57.9]}
4. Nbd2 {[%clk 0:03:00.9]} 4... Nc6 {[%clk 0:02:58.4]} 5. g3 {[%clk 0:03:01.1]}
5... Be7 {[%clk 0:02:58.9]} 6. Bg2 {[%clk 0:03:01.3]} 6... Nf6 {[%clk
0:02:59.5]} 7. O-O {[%clk 0:03:01.5]} 7... O-O {[%clk 0:02:59.8]} 8. Re1 {[%clk
0:03:02.1]} 8... h6 {[%clk 0:03:00.4]} 9. e5 {[%clk 0:03:02.2]} 9... Nh7 {[%clk
0:03:00.7]} 10. h4 {[%clk 0:03:01.5]} 10... b6 {[%clk 0:03:00.3]} 11. Nf1 {[%clk
0:03:00.1]} 11... a5 {[%clk 0:03:00.6]} 12. Bf4 {[%clk 0:02:59.9]} 12... a4
{[%clk 0:03:00.9]} 13. Qd2 {[%clk 0:02:59.8]} 13... a3 {[%clk 0:03:01.2]} 14.
bxa3 {[%clk 0:02:59]} 14... Rxa3 {[%clk 0:03:00.7]} 15. Bxh6 {[%clk 0:02:51.1]}
15... gxh6 {[%clk 0:03:00.8]} 16. Qxh6 {[%clk 0:02:51.3]} 16... Kh8 {[%clk
0:02:55.3]} 17. g4 {[%clk 0:02:28.9]} 17... Rg8 {[%clk 0:02:46.4]} 18. g5 {[%clk
0:02:29.2]} 18... Nb4 {[%clk 0:02:20.8]} 19. Re2 {[%clk 0:02:19.7]} 19... Rxa2
{[%clk 0:02:16.1]} 20. Rxa2 {[%clk 0:02:17.9]} 20... Nxa2 {[%clk 0:02:17]} 21.
N1h2 {[%clk 0:02:15.1]} 21... Nc3 {[%clk 0:02:17]} 22. Re1 {[%clk 0:02:15.1]}
22... Bd7 {[%clk 0:01:58.9]} 23. Ng4 {[%clk 0:02:11.6]} 23... Nb5 {[%clk
0:01:06.6]} 24. Nf6 {[%clk 0:02:05.4]} 24... Bxf6 {[%clk 0:01:03]} 25. exf6
{[%clk 0:02:04.9]} 25... Nd4 {[%clk 0:00:52]} 26. Ne5 {[%clk 0:02:03.2]} 26...
Qf8 {[%clk 0:00:24.5]} 27. Ra1 {[%clk 0:01:00.9]} 27... Nf5 {[%clk 0:00:20.6]}
28. Qh5 {[%clk 0:00:56.6]} 28... Be8 {[%clk 0:00:21]} 29. Ra8 {[%clk 0:00:54]}
29... Qd6 {[%clk 0:00:20.8]} 30. Rxe8 {[%clk 0:00:38.5]} 30... Qxe5 {[%clk
0:00:17.9]} 31. Qxf7 {[%clk 0:00:37.2]} 31... Qe1+ {[%clk 0:00:14.8]} 32. Bf1
{[%clk 0:00:36.9]} 32... Nh6 {[%clk 0:00:11.7]} 33. Qg7# {[%clk 0:00:35.9]} 1-0

[Event "Late-Titled-Tuesday-Blitz-September-19-2023"]
[Site "Chess.com"]
[Date "2023.09.19"]
[Round "11"]
[White "kuli4ik"]
[Black "Arystanner"]
[Result "0-1"]
[WhiteElo "2943"]
[BlackElo "2823"]
[TimeControl "180+1"]
[EndTime "16:04:50 PDT"]
[Termination "Arystanner won by resignation"]

1. Nf3 {[%clk 0:02:59.9]} 1... d5 {[%clk 0:02:59.5]} 2. g3 {[%clk 0:02:57.8]}
2... b6 {[%clk 0:02:59.9]} 3. Bg2 {[%clk 0:02:57.7]} 3... Bb7 {[%clk 0:03:00.4]}
4. O-O {[%clk 0:02:58.2]} 4... Nd7 {[%clk 0:03:00.8]} 5. d3 {[%clk 0:02:57.7]}
5... e6 {[%clk 0:03:00.9]} 6. Nbd2 {[%clk 0:02:56.7]} 6... Ngf6 {[%clk 0:03:01]}
7. a4 {[%clk 0:02:54.3]} 7... a6 {[%clk 0:02:59.6]} 8. Re1 {[%clk 0:02:50.9]}
8... Be7 {[%clk 0:02:59.3]} 9. e4 {[%clk 0:02:50.6]} 9... dxe4 {[%clk
0:03:00.2]} 10. dxe4 {[%clk 0:02:51.3]} 10... e5 {[%clk 0:02:55]} 11. b3 {[%clk
0:02:49]} 11... O-O {[%clk 0:02:45.6]} 12. Bb2 {[%clk 0:02:48]} 12... Bd6 {[%clk
0:02:45.8]} 13. Nc4 {[%clk 0:02:39.4]} 13... Qe7 {[%clk 0:02:21.2]} 14. Nxd6
{[%clk 0:02:32.5]} 14... cxd6 {[%clk 0:02:22.1]} 15. Nd2 {[%clk 0:02:29.1]}
15... Rfd8 {[%clk 0:02:16.7]} 16. c4 {[%clk 0:02:28.9]} 16... a5 {[%clk
0:02:13.9]} 17. Re3 {[%clk 0:02:25.6]} 17... Nc5 {[%clk 0:02:13.6]} 18. f3
{[%clk 0:02:23.4]} 18... Ne6 {[%clk 0:02:05.7]} 19. Nb1 {[%clk 0:02:21.6]} 19...
Nd7 {[%clk 0:02:05.3]} 20. Nc3 {[%clk 0:02:21]} 20... Ndc5 {[%clk 0:02:06]} 21.
Nd5 {[%clk 0:02:12.7]} 21... Bxd5 {[%clk 0:02:01.7]} 22. exd5 {[%clk 0:02:12.1]}
22... Qg5 {[%clk 0:01:54.3]} 23. Qe1 {[%clk 0:01:54]} 23... Nd4 {[%clk
0:01:47.3]} 24. f4 {[%clk 0:01:53.8]} 24... Qh6 {[%clk 0:01:47.6]} 25. Qd1
{[%clk 0:01:43.8]} 25... Nf5 {[%clk 0:01:44.2]} 26. Rf3 {[%clk 0:01:37.6]} 26...
e4 {[%clk 0:01:44.5]} 27. Rc3 {[%clk 0:01:29.9]} 27... Re8 {[%clk 0:01:44.6]}
28. Qc2 {[%clk 0:01:20.3]} 28... Nd4 {[%clk 0:01:26.8]} 29. Qd1 {[%clk
0:01:19.8]} 29... Nf5 {[%clk 0:01:25.1]} 30. Qc2 {[%clk 0:01:18.1]} 30... Qf6
{[%clk 0:01:19.3]} 31. Re1 {[%clk 0:01:15]} 31... Qd4+ {[%clk 0:01:14.5]} 32.
Kh1 {[%clk 0:01:05.1]} 32... Nd3 {[%clk 0:01:08.5]} 33. Re2 {[%clk 0:00:51.7]}
33... Nxb2 {[%clk 0:01:07.5]} 34. Bxe4 {[%clk 0:00:39.5]} 34... Nd1 {[%clk
0:00:56]} 35. Rd3 {[%clk 0:00:30.4]} 35... Nf2+ {[%clk 0:00:55.9]} 36. Rxf2
{[%clk 0:00:25.4]} 36... Qxe4+ {[%clk 0:00:56.2]} 37. Kg1 {[%clk 0:00:25.6]}
37... Nd4 {[%clk 0:00:45.5]} 38. Qd2 {[%clk 0:00:19.4]} 38... Ne2+ {[%clk
0:00:45.2]} 0-1

[Event "Late-Titled-Tuesday-Blitz-September-19-2023"]
[Site "Chess.com"]
[Date "2023.09.19"]
[Round "11"]
[White "ukchessbomber"]
[Black "Hrant_ChessMood"]
[Result "0-1"]
[WhiteElo "2710"]
[BlackElo "2910"]
[TimeControl "180+1"]
[EndTime "16:04:52 PDT"]
[Termination "Hrant_ChessMood won on time"]

1. b4 {[%clk 0:02:53.2]} 1... e5 {[%clk 0:02:59.2]} 2. Bb2 {[%clk 0:02:53.4]}
2... Nf6 {[%clk 0:02:57.1]} 3. Bxe5 {[%clk 0:02:52.6]} 3... Nc6 {[%clk
0:02:53.7]} 4. Bxf6 {[%clk 0:02:48.3]} 4... Qxf6 {[%clk 0:02:53]} 5. c3 {[%clk
0:02:48.6]} 5... Bxb4 {[%clk 0:02:52.3]} 6. d4 {[%clk 0:02:35.6]} 6... Ba5
{[%clk 0:02:48.9]} 7. e3 {[%clk 0:02:34.4]} 7... O-O {[%clk 0:02:44.9]} 8. Ne2
{[%clk 0:01:45.5]} 8... Re8 {[%clk 0:02:43.2]} 9. Nd2 {[%clk 0:01:43.5]} 9... d6
{[%clk 0:02:33.8]} 10. g3 {[%clk 0:01:31.4]} 10... Bg4 {[%clk 0:02:32.2]} 11.
Bg2 {[%clk 0:01:31.2]} 11... Bxc3 {[%clk 0:02:27.6]} 12. Rc1 {[%clk 0:01:30.3]}
12... Nxd4 {[%clk 0:02:16]} 13. Rxc3 {[%clk 0:01:14.3]} 13... Nxe2 {[%clk
0:02:10.2]} 14. Rc4 {[%clk 0:01:11.8]} 14... Bh5 {[%clk 0:01:39.9]} 15. g4
{[%clk 0:00:49.5]} 15... Nf4 {[%clk 0:01:34.8]} 16. Rxf4 {[%clk 0:00:38.3]}
16... Qxf4 {[%clk 0:01:29.2]} 17. gxh5 {[%clk 0:00:38.7]} 17... d5 {[%clk
0:01:15.8]} 18. Qf3 {[%clk 0:00:21.6]} 18... Qxf3 {[%clk 0:01:04.6]} 19. Bxf3
{[%clk 0:00:21.6]} 19... c6 {[%clk 0:01:05.5]} 20. h6 {[%clk 0:00:18.5]} 20...
g6 {[%clk 0:01:03.6]} 21. Ke2 {[%clk 0:00:18.8]} 21... Rad8 {[%clk 0:01:01.1]}
22. Rb1 {[%clk 0:00:18.4]} 22... Re7 {[%clk 0:01:01.1]} 23. Nb3 {[%clk
0:00:16.7]} 23... Kf8 {[%clk 0:00:57.8]} 24. a4 {[%clk 0:00:16.6]} 24... b6
{[%clk 0:00:57.3]} 25. a5 {[%clk 0:00:16.7]} 25... c5 {[%clk 0:00:57.4]} 26.
axb6 {[%clk 0:00:14.1]} 26... axb6 {[%clk 0:00:58.3]} 27. Nc1 {[%clk 0:00:13.6]}
27... Re6 {[%clk 0:00:54.7]} 28. Nd3 {[%clk 0:00:13.3]} 28... d4 {[%clk
0:00:50]} 29. Nf4 {[%clk 0:00:13.6]} 29... Red6 {[%clk 0:00:50]} 30. exd4 {[%clk
0:00:12.1]} 30... Rxd4 {[%clk 0:00:49.9]} 31. Ng2 {[%clk 0:00:09.1]} 31... Rb4
{[%clk 0:00:47]} 32. Ra1 {[%clk 0:00:06.7]} 32... Rb2+ {[%clk 0:00:46.5]} 33.
Ke3 {[%clk 0:00:07.3]} 33... c4 {[%clk 0:00:46.7]} 34. Nf4 {[%clk 0:00:05.7]}
34... Rb3+ {[%clk 0:00:44.9]} 35. Ke4 {[%clk 0:00:01.3]} 35... Re8+ {[%clk
0:00:44.9]} 36. Kd4 {[%clk 0:00:01.1]} 36... Rxf3 {[%clk 0:00:43.7]} 37. Nd5
{[%clk 0:00:01.5]} 37... b5 {[%clk 0:00:42.1]} 0-1

[Event "Late-Titled-Tuesday-Blitz-September-19-2023"]
[Site "Chess.com"]
[Date "2023.09.19"]
[Round "11"]
[White "dorpato"]
[Black "protectiago"]
[Result "1-0"]
[WhiteElo "2007"]
[BlackElo "2062"]
[TimeControl "180+1"]
[EndTime "16:04:56 PDT"]
[Termination "dorpato won on time"]

1. e4 {[%clk 0:03:00.9]} 1... e5 {[%clk 0:02:57.3]} 2. Nf3 {[%clk 0:03:00.5]}
2... Nc6 {[%clk 0:02:55.7]} 3. d4 {[%clk 0:02:57]} 3... exd4 {[%clk 0:02:55.5]}
4. c3 {[%clk 0:02:56.9]} 4... dxc3 {[%clk 0:02:54.8]} 5. Nxc3 {[%clk 0:02:57.8]}
5... Nf6 {[%clk 0:02:54.2]} 6. Bc4 {[%clk 0:02:57.2]} 6... Bb4 {[%clk
0:02:52.4]} 7. e5 {[%clk 0:02:56.4]} 7... Ng4 {[%clk 0:02:41.6]} 8. Bxf7+ {[%clk
0:02:51.1]} 8... Kf8 {[%clk 0:02:32.7]} 9. O-O {[%clk 0:02:32.2]} 9... Ncxe5
{[%clk 0:02:23.3]} 10. Nxe5 {[%clk 0:02:08]} 10... Nxe5 {[%clk 0:02:22.7]} 11.
Bb3 {[%clk 0:02:02.9]} 11... Bxc3 {[%clk 0:02:19.7]} 12. bxc3 {[%clk 0:02:02.5]}
12... d6 {[%clk 0:02:02.7]} 13. Bf4 {[%clk 0:01:56.9]} 13... Qf6 {[%clk
0:01:59.9]} 14. Bg3 {[%clk 0:01:53.5]} 14... Be6 {[%clk 0:01:51.2]} 15. Re1
{[%clk 0:01:37]} 15... Re8 {[%clk 0:01:45.4]} 16. Bxe5 {[%clk 0:01:32.1]} 16...
dxe5 {[%clk 0:01:43.7]} 17. Bxe6 {[%clk 0:01:27.6]} 17... Rxe6 {[%clk
0:01:40.3]} 18. Re3 {[%clk 0:01:28.2]} 18... Ke7 {[%clk 0:01:38.2]} 19. Qd5
{[%clk 0:01:16.3]} 19... Rd8 {[%clk 0:01:34.7]} 20. Qc5+ {[%clk 0:00:47.3]}
20... Red6 {[%clk 0:01:27.6]} 21. Rxe5+ {[%clk 0:00:28.8]} 21... Kf8 {[%clk
0:01:23.7]} 22. Rae1 {[%clk 0:00:21.3]} 22... b6 {[%clk 0:01:21.1]} 23. Qb4
{[%clk 0:00:16.3]} 23... c5 {[%clk 0:01:18.5]} 24. Qe4 {[%clk 0:00:16.5]} 24...
R6d7 {[%clk 0:00:58.7]} 25. Rf5 {[%clk 0:00:15.4]} 1-0

[Event "Late-Titled-Tuesday-Blitz-September-19-2023"]
[Site "Chess.com"]
[Date "2023.09.19"]
[Round "11"]
[White "Sina_Movahed"]
[Black "Hikaru"]
[Result "1/2-1/2"]
[WhiteElo "3004"]
[BlackElo "3249"]
[TimeControl "180+1"]
[EndTime "16:04:59 PDT"]
[Termination "Game drawn by repetition"]

1. e4 {[%clk 0:03:00.9]} 1... a6 {[%clk 0:03:00.2]} 2. d4 {[%clk 0:03:00.8]}
2... c6 {[%clk 0:03:00.6]} 3. Bd3 {[%clk 0:02:56.9]} 3... d6 {[%clk 0:02:59]} 4.
Nf3 {[%clk 0:02:55.8]} 4... g6 {[%clk 0:02:59.2]} 5. h4 {[%clk 0:02:53.6]} 5...
Bg4 {[%clk 0:02:57.8]} 6. Nbd2 {[%clk 0:02:46]} 6... Bg7 {[%clk 0:02:57.3]} 7.
c3 {[%clk 0:02:46.3]} 7... Nd7 {[%clk 0:02:57.2]} 8. Nf1 {[%clk 0:02:46]} 8...
e5 {[%clk 0:02:56.7]} 9. dxe5 {[%clk 0:02:41.1]} 9... Nxe5 {[%clk 0:02:53]} 10.
Be2 {[%clk 0:02:40.9]} 10... Bxf3 {[%clk 0:02:50.6]} 11. gxf3 {[%clk 0:02:40.9]}
11... Qe7 {[%clk 0:02:48.2]} 12. h5 {[%clk 0:02:39.5]} 12... O-O-O {[%clk
0:02:46.6]} 13. h6 {[%clk 0:02:37.9]} 13... Bf8 {[%clk 0:02:43.4]} 14. Be3
{[%clk 0:02:34.4]} 14... d5 {[%clk 0:02:28.4]} 15. Qb3 {[%clk 0:02:07.2]} 15...
dxe4 {[%clk 0:02:22.9]} 16. fxe4 {[%clk 0:02:08.1]} 16... f5 {[%clk 0:02:16]}
17. exf5 {[%clk 0:01:41.5]} 17... gxf5 {[%clk 0:02:16.4]} 18. Rd1 {[%clk
0:01:42]} 18... Rxd1+ {[%clk 0:02:06.3]} 19. Kxd1 {[%clk 0:01:42.9]} 19... Qd6+
{[%clk 0:02:06.1]} 20. Kc2 {[%clk 0:01:38.1]} 20... Bxh6 {[%clk 0:01:59.5]} 21.
Bd4 {[%clk 0:01:27.6]} 21... f4 {[%clk 0:01:02.9]} 22. Nd2 {[%clk 0:00:54.2]}
22... f3 {[%clk 0:00:54.2]} 23. Bf1 {[%clk 0:00:20.6]} 23... Bxd2 {[%clk
0:00:48.9]} 24. Bh3+ {[%clk 0:00:20.4]} 24... Kb8 {[%clk 0:00:46]} 25. Qb6
{[%clk 0:00:19.9]} 25... Qg6+ {[%clk 0:00:43.9]} 26. Kb3 {[%clk 0:00:16.9]}
26... Qf7+ {[%clk 0:00:44.3]} 27. Kc2 {[%clk 0:00:15.9]} 27... Qg6+ {[%clk
0:00:26.3]} 28. Kb3 {[%clk 0:00:15.5]} 28... Qf7+ {[%clk 0:00:09.8]} 29. Kc2
{[%clk 0:00:13.4]} 29... Qg6+ {[%clk 0:00:09.8]} 1/2-1/2

[Event "Late-Titled-Tuesday-Blitz-September-19-2023"]
[Site "Chess.com"]
[Date "2023.09.19"]
[Round "11"]
[White "JoakimVonAnd"]
[Black "scandalgod"]
[Result "0-1"]
[WhiteElo "2688"]
[BlackElo "2487"]
[TimeControl "180+1"]
[EndTime "16:05:01 PDT"]
[Termination "scandalgod won by checkmate"]

1. c4 {[%clk 0:03:00.3]} 1... e5 {[%clk 0:02:55.1]} 2. g3 {[%clk 0:02:58.9]}
2... Nc6 {[%clk 0:02:54.8]} 3. Bg2 {[%clk 0:02:59]} 3... Bc5 {[%clk 0:02:53.8]}
4. Nc3 {[%clk 0:02:58.8]} 4... a6 {[%clk 0:02:53.6]} 5. e3 {[%clk 0:02:59.4]}
5... d6 {[%clk 0:02:52.9]} 6. Nge2 {[%clk 0:02:59.8]} 6... Ba7 {[%clk
0:02:50.9]} 7. O-O {[%clk 0:02:59.7]} 7... h5 {[%clk 0:02:50.3]} 8. h4 {[%clk
0:02:42]} 8... g5 {[%clk 0:02:35.3]} 9. hxg5 {[%clk 0:02:38.8]} 9... h4 {[%clk
0:02:32.4]} 10. d4 {[%clk 0:02:36.3]} 10... Qxg5 {[%clk 0:02:27.7]} 11. dxe5
{[%clk 0:02:28.4]} 11... hxg3 {[%clk 0:02:23.5]} 12. Nxg3 {[%clk 0:02:22.2]}
12... Qh4 {[%clk 0:02:19.6]} 13. Re1 {[%clk 0:02:16.9]} 13... Nxe5 {[%clk
0:02:16.7]} 14. Nd5 {[%clk 0:02:13.6]} 14... Bg4 {[%clk 0:02:13.1]} 15. Qa4+
{[%clk 0:01:55.7]} 15... Kf8 {[%clk 0:02:06.8]} 16. c5 {[%clk 0:01:52]} 16...
Bxc5 {[%clk 0:01:45.7]} 17. Nxc7 {[%clk 0:01:51.3]} 17... Qh2+ {[%clk
0:01:17.6]} 18. Kf1 {[%clk 0:01:50.9]} 18... Rc8 {[%clk 0:01:12.6]} 19. Nd5
{[%clk 0:01:44.2]} 19... Qxg2+ {[%clk 0:00:57.7]} 20. Kxg2 {[%clk 0:01:42.7]}
20... Bh3+ {[%clk 0:00:56.6]} 21. Kh1 {[%clk 0:01:35.2]} 21... Bd7+ {[%clk
0:00:42]} 22. Kg2 {[%clk 0:01:35.3]} 22... Bxa4 {[%clk 0:00:41.7]} 23. e4 {[%clk
0:01:35.2]} 23... Ne7 {[%clk 0:00:39.9]} 24. Nf6 {[%clk 0:01:34.5]} 24... N7g6
{[%clk 0:00:36]} 25. b3 {[%clk 0:01:32.8]} 25... Bc6 {[%clk 0:00:35.8]} 26. Bb2
{[%clk 0:01:32.8]} 26... Ke7 {[%clk 0:00:31.8]} 27. Nd5+ {[%clk 0:01:32.2]}
27... Bxd5 {[%clk 0:00:32.2]} 28. exd5 {[%clk 0:01:33.1]} 28... Kd7 {[%clk
0:00:32.6]} 29. Re4 {[%clk 0:01:31.2]} 29... Rcg8 {[%clk 0:00:31.3]} 30. b4
{[%clk 0:01:29.1]} 30... Bb6 {[%clk 0:00:30.7]} 31. a4 {[%clk 0:01:26.5]} 31...
Nh4+ {[%clk 0:00:29.2]} 32. Kf1 {[%clk 0:01:25.2]} 32... Nhf3 {[%clk 0:00:24.4]}
33. Ke2 {[%clk 0:01:25.4]} 33... Rh2 {[%clk 0:00:22.7]} 34. Rf1 {[%clk 0:01:25]}
34... Rxg3 {[%clk 0:00:21.9]} 35. a5 {[%clk 0:01:23.6]} 35... Ba7 {[%clk
0:00:21.6]} 36. Rf4 {[%clk 0:01:23.6]} 36... Rgg2 {[%clk 0:00:18.1]} 37. Bxe5
{[%clk 0:01:17.6]} 37... Nxe5 {[%clk 0:00:12]} 38. b5 {[%clk 0:01:15.8]} 38...
axb5 {[%clk 0:00:11.9]} 39. Rb1 {[%clk 0:01:15.8]} 39... Rxf2+ {[%clk 0:00:12]}
40. Rxf2 {[%clk 0:01:16.7]} 40... Rxf2+ {[%clk 0:00:12]} 41. Ke1 {[%clk
0:01:17.6]} 41... Bc5 {[%clk 0:00:11.4]} 42. Rxb5 {[%clk 0:01:16.8]} 42... Ra2
{[%clk 0:00:11.5]} 43. Rxb7+ {[%clk 0:01:16.3]} 43... Ke8 {[%clk 0:00:11.9]} 44.
Rb5 {[%clk 0:01:15.1]} 44... Ke7 {[%clk 0:00:11.3]} 45. Kd1 {[%clk 0:01:15.2]}
45... f5 {[%clk 0:00:11.5]} 46. Rb7+ {[%clk 0:01:15]} 46... Kf6 {[%clk
0:00:11.2]} 47. Rb8 {[%clk 0:01:15.9]} 47... Rxa5 {[%clk 0:00:10.1]} 48. Rf8+
{[%clk 0:01:16.5]} 48... Kg5 {[%clk 0:00:10.4]} 49. Rh8 {[%clk 0:01:15.8]} 49...
Kf4 {[%clk 0:00:10.3]} 50. Rh4+ {[%clk 0:01:16.5]} 50... Ng4 {[%clk 0:00:10.8]}
51. Rh1 {[%clk 0:01:15.9]} 51... Be3 {[%clk 0:00:10.9]} 52. Ke2 {[%clk
0:01:15.9]} 52... Ke4 {[%clk 0:00:11.1]} 53. Rb1 {[%clk 0:01:15.3]} 53... Ra2+
{[%clk 0:00:11.5]} 54. Ke1 {[%clk 0:01:15.4]} 54... f4 {[%clk 0:00:11.9]} 55.
Rb4+ {[%clk 0:01:15.9]} 55... Bd4 {[%clk 0:00:12.3]} 56. Rb3 {[%clk 0:01:16.2]}
56... f3 {[%clk 0:00:12.2]} 57. Rb1 {[%clk 0:01:15.5]} 57... f2+ {[%clk
0:00:12.4]} 58. Kf1 {[%clk 0:01:16.1]} 58... Ne3# {[%clk 0:00:12.5]} 0-1